[Event "*** Titled Tuesday Blitz"]
[Site "Chess.com"]
[Date "2021.03.09"]
[Round "5"]
[White "BillieKimbah"]
[Black "moro182"]
[Result "0-1"]
[WhiteElo "2862"]
[BlackElo "2702"]
[TimeControl "180+1"]
[EndTime "11:00:09 PST"]
[Termination "moro182 won by resignation"]

1. Nf3 {[%clk 0:02:59.7]} 1... Nf6 {[%clk 0:02:57]} 2. g3 {[%clk 0:03:00.1]}
2... g6 {[%clk 0:02:52.5]} 3. Bg2 {[%clk 0:03:00.6]} 3... Bg7 {[%clk 0:02:50.2]}
4. d4 {[%clk 0:03:00.4]} 4... d5 {[%clk 0:02:38.2]} 5. O-O {[%clk 0:02:59.9]}
5... O-O {[%clk 0:02:37.9]} 6. c3 {[%clk 0:03:00.3]} 6... a5 {[%clk 0:02:35.5]}
7. a4 {[%clk 0:02:58.5]} 7... c6 {[%clk 0:02:33.7]} 8. Bf4 {[%clk 0:02:54.3]}
8... Bf5 {[%clk 0:02:33.2]} 9. Nbd2 {[%clk 0:02:54.1]} 9... Nbd7 {[%clk
0:02:33]} 10. h3 {[%clk 0:02:54.1]} 10... h6 {[%clk 0:02:32.4]} 11. Ne5 {[%clk
0:02:50.3]} 11... g5 {[%clk 0:02:28.6]} 12. Be3 {[%clk 0:02:44.6]} 12... Ne4
{[%clk 0:02:15.4]} 13. Nxe4 {[%clk 0:02:29.6]} 13... Bxe4 {[%clk 0:02:12]} 14.
f3 {[%clk 0:02:24.3]} 14... Bh7 {[%clk 0:02:06]} 15. f4 {[%clk 0:02:24.4]} 15...
Nxe5 {[%clk 0:02:02]} 16. dxe5 {[%clk 0:02:22.7]} 16... gxf4 {[%clk 0:01:43.1]}
17. gxf4 {[%clk 0:02:22.3]} 17... Bf5 {[%clk 0:01:39.6]} 18. Kh2 {[%clk
0:02:19.7]} 18... Kh7 {[%clk 0:01:33.9]} 19. Rg1 {[%clk 0:02:06.3]} 19... e6
{[%clk 0:01:31.6]} 20. Bf3 {[%clk 0:01:59.9]} 20... Rg8 {[%clk 0:01:24.4]} 21.
Qe1 {[%clk 0:01:48.5]} 21... f6 {[%clk 0:01:11.7]} 22. exf6 {[%clk 0:01:46.7]}
22... Qxf6 {[%clk 0:01:09.6]} 23. Qf2 {[%clk 0:01:41.2]} 23... Qf7 {[%clk
0:01:06.3]} 24. Bd4 {[%clk 0:01:19.7]} 24... Bf6 {[%clk 0:00:58.7]} 25. Bg4
{[%clk 0:01:07.6]} 25... h5 {[%clk 0:00:48.3]} 26. Bf3 {[%clk 0:01:04.3]} 26...
h4 {[%clk 0:00:48]} 27. Bxf6 {[%clk 0:01:00]} 27... Qxf6 {[%clk 0:00:47.2]} 28.
Rg5 {[%clk 0:01:00.7]} 28... Rxg5 {[%clk 0:00:35.3]} 29. Qxh4+ {[%clk
0:01:00.5]} 29... Kg6 {[%clk 0:00:28.4]} 30. fxg5 {[%clk 0:00:54.7]} 30... Qe5+
{[%clk 0:00:28.3]} 31. Qg3 {[%clk 0:00:49.3]} 31... Qxg3+ {[%clk 0:00:28]} 32.
Kxg3 {[%clk 0:00:50.2]} 32... Kxg5 {[%clk 0:00:28.5]} 33. Rg1 {[%clk 0:00:44.1]}
33... Rh8 {[%clk 0:00:21.3]} 34. Bg2 {[%clk 0:00:25.6]} 34... Kf6 {[%clk
0:00:19.2]} 35. h4 {[%clk 0:00:24.6]} 35... Rg8+ {[%clk 0:00:18.9]} 36. Kf2
{[%clk 0:00:25]} 36... Rh8 {[%clk 0:00:14.9]} 37. Kg3 {[%clk 0:00:24.7]} 37...
b6 {[%clk 0:00:14.9]} 38. Bf3 {[%clk 0:00:22.3]} 38... Rg8+ {[%clk 0:00:15.1]}
39. Kf2 {[%clk 0:00:22.7]} 39... Rxg1 {[%clk 0:00:16]} 40. Kxg1 {[%clk
0:00:22.8]} 40... Bc2 {[%clk 0:00:16.9]} 41. Kf2 {[%clk 0:00:20.2]} 41... Bxa4
{[%clk 0:00:17]} 42. e4 {[%clk 0:00:20.6]} 42... Bc2 {[%clk 0:00:12]} 43. exd5
{[%clk 0:00:20.8]} 43... cxd5 {[%clk 0:00:11.9]} 44. Ke3 {[%clk 0:00:21.4]}
44... Bb3 {[%clk 0:00:09.7]} 45. h5 {[%clk 0:00:20.8]} 45... e5 {[%clk
0:00:09.9]} 46. Kd2 {[%clk 0:00:16.9]} 46... Kg5 {[%clk 0:00:09.9]} 47. Ke3
{[%clk 0:00:17.2]} 47... Bc4 {[%clk 0:00:10.2]} 48. Kd2 {[%clk 0:00:17.5]} 48...
b5 {[%clk 0:00:10.4]} 49. Ke3 {[%clk 0:00:17.7]} 49... b4 {[%clk 0:00:10.6]} 50.
Kd2 {[%clk 0:00:17.7]} 50... b3 {[%clk 0:00:09.1]} 51. Ke3 {[%clk 0:00:16.6]}
51... a4 {[%clk 0:00:08.5]} 52. Kd2 {[%clk 0:00:17.2]} 52... e4 {[%clk
0:00:05.9]} 53. Bd1 {[%clk 0:00:16.4]} 53... Kh6 {[%clk 0:00:05.7]} 54. Bg4
{[%clk 0:00:15.5]} 54... Bb5 {[%clk 0:00:05]} 55. Be6 {[%clk 0:00:14.8]} 55...
Bc6 {[%clk 0:00:03.7]} 56. Bg4 {[%clk 0:00:13.8]} 56... Kg5 {[%clk 0:00:03.9]}
57. Kc1 {[%clk 0:00:13.5]} 57... Be8 {[%clk 0:00:02.4]} 58. Be6 {[%clk
0:00:12.9]} 58... Bc6 {[%clk 0:00:02.4]} 59. Bg4 {[%clk 0:00:12.1]} 59... e3
{[%clk 0:00:02.7]} 60. Bf3 {[%clk 0:00:12]} 60... a3 {[%clk 0:00:01.9]} 61. bxa3
{[%clk 0:00:11.6]} 61... d4 {[%clk 0:00:02.8]} 62. h6 {[%clk 0:00:10.6]} 62...
Kxh6 {[%clk 0:00:01.8]} 63. Bxc6 {[%clk 0:00:10.6]} 63... d3 {[%clk 0:00:02.2]}
64. Bf3 {[%clk 0:00:09.1]} 64... e2 {[%clk 0:00:02.5]} 65. Bxe2 {[%clk
0:00:09.7]} 65... dxe2 {[%clk 0:00:03.4]} 66. Kd2 {[%clk 0:00:10.6]} 66... b2
{[%clk 0:00:04]} 67. Kxe2 {[%clk 0:00:11.5]} 67... b1=Q {[%clk 0:00:04.8]} 0-1

[Event "*** Titled Tuesday Blitz"]
[Site "Chess.com"]
[Date "2021.03.09"]
[Round "5"]
[White "volkanyirik"]
[Black "night_player"]
[Result "1-0"]
[WhiteElo "2408"]
[BlackElo "2165"]
[TimeControl "180+1"]
[EndTime "11:00:09 PST"]
[Termination "volkanyirik won by resignation"]

1. e4 {[%clk 0:01:15.1]} 1... c5 {[%clk 0:02:58.2]} 2. Nc3 {[%clk 0:01:14.8]}
2... e5 {[%clk 0:02:56.9]} 3. f4 {[%clk 0:01:15.7]} 3... exf4 {[%clk 0:02:55.5]}
4. Nf3 {[%clk 0:01:16.6]} 4... d6 {[%clk 0:02:52.8]} 5. Bc4 {[%clk 0:01:17.1]}
5... Be6 {[%clk 0:02:52.2]} 6. Bxe6 {[%clk 0:01:16]} 6... fxe6 {[%clk
0:02:53.1]} 7. d4 {[%clk 0:01:16.8]} 7... Nc6 {[%clk 0:02:35.6]} 8. d5 {[%clk
0:01:16.8]} 8... exd5 {[%clk 0:02:32.3]} 9. exd5 {[%clk 0:01:17]} 9... Qe7+
{[%clk 0:02:23.4]} 10. Kf2 {[%clk 0:01:16.9]} 10... Ne5 {[%clk 0:02:21.1]} 11.
Re1 {[%clk 0:01:13.7]} 11... O-O-O {[%clk 0:02:14.4]} 12. Bxf4 {[%clk
0:01:11.9]} 12... Ng4+ {[%clk 0:01:30.9]} 13. Kg1 {[%clk 0:01:11.5]} 13... Qf7
{[%clk 0:01:30]} 14. Bg3 {[%clk 0:01:07.1]} 14... N8f6 {[%clk 0:01:24.8]} 15.
Ng5 {[%clk 0:01:05.6]} 15... Qg6 {[%clk 0:01:20.8]} 16. Ne6 {[%clk 0:01:04.3]}
16... Rd7 {[%clk 0:01:13.7]} 17. Qf3 {[%clk 0:01:03.3]} 17... Qxc2 {[%clk
0:00:49.4]} 18. Nb5 {[%clk 0:00:50.1]} 18... Kb8 {[%clk 0:00:47.2]} 19. Nxf8
{[%clk 0:00:48.8]} 19... Rxf8 {[%clk 0:00:45]} 20. Bxd6+ {[%clk 0:00:48.8]}
20... Rxd6 {[%clk 0:00:44.4]} 21. Nxd6 {[%clk 0:00:48.9]} 21... Qd2 {[%clk
0:00:28.5]} 22. Qg3 {[%clk 0:00:44.9]} 22... Ka8 {[%clk 0:00:26]} 23. Nb5 {[%clk
0:00:44.3]} 23... a6 {[%clk 0:00:24.4]} 24. Nc7+ {[%clk 0:00:43.4]} 24... Ka7
{[%clk 0:00:24.7]} 25. Rad1 {[%clk 0:00:43]} 25... Qxb2 {[%clk 0:00:23.1]} 26.
d6 {[%clk 0:00:43.2]} 26... Rd8 {[%clk 0:00:21.7]} 27. h3 {[%clk 0:00:41.4]}
27... Nh6 {[%clk 0:00:12.8]} 28. Rb1 {[%clk 0:00:38.7]} 28... Qd4+ {[%clk
0:00:11.4]} 29. Kh1 {[%clk 0:00:39]} 29... Qxd6 {[%clk 0:00:11.7]} 30. Qxg7
{[%clk 0:00:34.1]} 30... Rd7 {[%clk 0:00:09.8]} 31. Qxh6 {[%clk 0:00:30.9]}
31... Rxc7 {[%clk 0:00:10.2]} 32. Rf1 {[%clk 0:00:30.5]} 32... Ne4 {[%clk
0:00:08.7]} 33. Qxd6 {[%clk 0:00:28]} 33... Nxd6 {[%clk 0:00:09.6]} 34. Rbc1
{[%clk 0:00:25.6]} 34... c4 {[%clk 0:00:09.5]} 35. Kh2 {[%clk 0:00:26.3]} 35...
b5 {[%clk 0:00:09.5]} 36. Rf6 {[%clk 0:00:26.4]} 36... Ne4 {[%clk 0:00:09.5]}
37. Rh6 {[%clk 0:00:26.2]} 37... Nc5 {[%clk 0:00:08.7]} 38. g4 {[%clk
0:00:23.4]} 38... Nd3 {[%clk 0:00:09.2]} 39. Rc2 {[%clk 0:00:23.8]} 39... Nb4
{[%clk 0:00:09.1]} 40. Rb2 {[%clk 0:00:23.4]} 40... c3 {[%clk 0:00:08.4]} 41.
Rb1 {[%clk 0:00:20.4]} 41... c2 {[%clk 0:00:08.5]} 42. Rf1 {[%clk 0:00:19.3]}
42... c1=Q {[%clk 0:00:07]} 43. Rxc1 {[%clk 0:00:18.4]} 43... Rxc1 {[%clk
0:00:07.9]} 44. Rxh7+ {[%clk 0:00:19.2]} 44... Kb6 {[%clk 0:00:07.6]} 45. g5
{[%clk 0:00:19.6]} 45... Nd5 {[%clk 0:00:05.9]} 46. h4 {[%clk 0:00:19.2]} 46...
Rc2+ {[%clk 0:00:05.7]} 47. Kg3 {[%clk 0:00:19.7]} 47... Rxa2 {[%clk 0:00:06.6]}
48. h5 {[%clk 0:00:19.7]} 48... b4 {[%clk 0:00:05.3]} 49. Rd7 {[%clk 0:00:16.3]}
49... Nc3 {[%clk 0:00:02.6]} 50. g6 {[%clk 0:00:15.3]} 50... Ra1 {[%clk
0:00:03.5]} 51. Kh2 {[%clk 0:00:14.9]} 51... Ra2+ {[%clk 0:00:03.4]} 52. Kh3
{[%clk 0:00:14.9]} 52... Ra1 {[%clk 0:00:03.3]} 53. g7 {[%clk 0:00:10.1]} 53...
Rg1 {[%clk 0:00:02.7]} 54. h6 {[%clk 0:00:10.5]} 54... Ne4 {[%clk 0:00:01.7]}
55. Rd8 {[%clk 0:00:08.7]} 55... Ka5 {[%clk 0:00:01.6]} 56. g8=Q {[%clk
0:00:05.4]} 56... Rxg8 {[%clk 0:00:02.5]} 57. Rxg8 {[%clk 0:00:05.5]} 57... b3
{[%clk 0:00:02.8]} 58. Re8 {[%clk 0:00:05.6]} 58... b2 {[%clk 0:00:02.6]} 59.
Re5+ {[%clk 0:00:04.7]} 59... Ka4 {[%clk 0:00:02.5]} 60. Rxe4+ {[%clk
0:00:04.8]} 60... Ka3 {[%clk 0:00:03.4]} 61. Re1 {[%clk 0:00:04.7]} 61... Ka2
{[%clk 0:00:03.7]} 62. h7 {[%clk 0:00:04.6]} 62... b1=Q {[%clk 0:00:04.6]} 63.
Rxb1 {[%clk 0:00:04.6]} 63... Kxb1 {[%clk 0:00:05.4]} 64. h8=Q {[%clk
0:00:05.5]} 64... Ka2 {[%clk 0:00:06.3]} 65. Qc3 {[%clk 0:00:04.9]} 65... a5
{[%clk 0:00:07.2]} 66. Qxa5+ {[%clk 0:00:04.9]} 1-0

[Event "*** Titled Tuesday Blitz"]
[Site "Chess.com"]
[Date "2021.03.09"]
[Round "5"]
[White "Atco84"]
[Black "lupta_robin"]
[Result "1/2-1/2"]
[WhiteElo "2440"]
[BlackElo "2579"]
[TimeControl "180+1"]
[EndTime "11:00:11 PST"]
[Termination "Game drawn by agreement"]

1. b3 {[%clk 0:03:00.9]} 1... e5 {[%clk 0:01:36.1]} 2. Bb2 {[%clk 0:03:01.8]}
2... Nc6 {[%clk 0:01:34]} 3. Nf3 {[%clk 0:03:02.1]} 3... d6 {[%clk 0:01:33]} 4.
c4 {[%clk 0:03:00]} 4... Nf6 {[%clk 0:01:31.3]} 5. g3 {[%clk 0:02:56.1]} 5...
Be7 {[%clk 0:01:31.3]} 6. Bg2 {[%clk 0:02:56.3]} 6... O-O {[%clk 0:01:31.9]} 7.
O-O {[%clk 0:02:56.8]} 7... Re8 {[%clk 0:01:31.7]} 8. d4 {[%clk 0:02:55.2]} 8...
exd4 {[%clk 0:01:29]} 9. Nxd4 {[%clk 0:02:55.1]} 9... Bd7 {[%clk 0:01:28.5]} 10.
Nc3 {[%clk 0:02:54.4]} 10... Bf8 {[%clk 0:01:28.9]} 11. Qd2 {[%clk 0:02:51.4]}
11... Rb8 {[%clk 0:01:18.6]} 12. Rad1 {[%clk 0:02:46.9]} 12... a6 {[%clk
0:01:18.4]} 13. Rfe1 {[%clk 0:02:43.5]} 13... Nxd4 {[%clk 0:01:17.2]} 14. Qxd4
{[%clk 0:02:43.6]} 14... c5 {[%clk 0:01:17.8]} 15. Qd3 {[%clk 0:02:40.5]} 15...
b5 {[%clk 0:01:17.9]} 16. h3 {[%clk 0:02:18.4]} 16... bxc4 {[%clk 0:00:58.5]}
17. Qxc4 {[%clk 0:02:16]} 17... a5 {[%clk 0:00:58.4]} 18. Bc1 {[%clk 0:02:03.6]}
18... Rb4 {[%clk 0:00:55.6]} 19. Qd3 {[%clk 0:02:03.3]} 19... a4 {[%clk
0:00:54.2]} 20. bxa4 {[%clk 0:01:50.7]} 20... Bxa4 {[%clk 0:00:53.3]} 21. Nxa4
{[%clk 0:01:31.3]} 21... Rxa4 {[%clk 0:00:54.2]} 22. a3 {[%clk 0:01:30.1]} 22...
Rd4 {[%clk 0:00:39.6]} 23. Qc2 {[%clk 0:01:28.9]} 23... Rxd1 {[%clk 0:00:39.7]}
24. Rxd1 {[%clk 0:01:28.8]} 24... Qa5 {[%clk 0:00:39.3]} 25. Bb2 {[%clk
0:01:00.7]} 25... Be7 {[%clk 0:00:39.3]} 26. e3 {[%clk 0:00:56.4]} 26... Rb8
{[%clk 0:00:37]} 27. Bxf6 {[%clk 0:00:46.7]} 27... Bxf6 {[%clk 0:00:36.5]} 28.
Rxd6 {[%clk 0:00:45.4]} 28... Qxa3 {[%clk 0:00:36.6]} 29. Bd5 {[%clk 0:00:42.9]}
29... Qa1+ {[%clk 0:00:23.4]} 30. Kg2 {[%clk 0:00:42.5]} 30... Qc3 {[%clk
0:00:23.8]} 31. Qa2 {[%clk 0:00:35.6]} 31... Rf8 {[%clk 0:00:16.6]} 32. Rd7
{[%clk 0:00:35.8]} 32... h6 {[%clk 0:00:13.5]} 33. Bxf7+ {[%clk 0:00:34.5]}
33... Kh8 {[%clk 0:00:14.1]} 34. Bd5 {[%clk 0:00:34.5]} 34... Qe5 {[%clk
0:00:13.6]} 35. Rf7 {[%clk 0:00:30]} 35... Rxf7 {[%clk 0:00:10.2]} 36. Bxf7
{[%clk 0:00:29.5]} 36... Qe7 {[%clk 0:00:10.7]} 37. Qc4 {[%clk 0:00:28.2]} 37...
Qf8 {[%clk 0:00:10.4]} 38. Bg6 {[%clk 0:00:28.1]} 38... Be7 {[%clk 0:00:10.8]}
39. Bc2 {[%clk 0:00:27.5]} 39... Qf6 {[%clk 0:00:09.8]} 40. Qe4 {[%clk
0:00:27.1]} 40... Kg8 {[%clk 0:00:10]} 41. Bb3+ {[%clk 0:00:27.3]} 41... Kf8
{[%clk 0:00:10.2]} 42. Qd5 {[%clk 0:00:22.4]} 42... Ke8 {[%clk 0:00:08.7]} 43.
Ba4+ {[%clk 0:00:20.4]} 43... Kf8 {[%clk 0:00:08.9]} 44. Bb3 {[%clk 0:00:21.3]}
44... Ke8 {[%clk 0:00:09]} 45. Ba4+ {[%clk 0:00:21.5]} 45... Kf8 {[%clk
0:00:09.4]} 46. Bb5 {[%clk 0:00:21.8]} 46... Bd6 {[%clk 0:00:08.5]} 47. Bc4
{[%clk 0:00:20.8]} 47... Ke7 {[%clk 0:00:08.8]} 48. h4 {[%clk 0:00:20.1]} 48...
Qe5 {[%clk 0:00:09.1]} 49. Qf7+ {[%clk 0:00:20.1]} 49... Kd8 {[%clk 0:00:09.8]}
50. Be6 {[%clk 0:00:20.4]} 50... Be7 {[%clk 0:00:08.4]} 51. Qg8+ {[%clk
0:00:21.3]} 51... Kc7 {[%clk 0:00:08.5]} 52. Qc8+ {[%clk 0:00:22.2]} 52... Kb6
{[%clk 0:00:07.5]} 53. Qd7 {[%clk 0:00:22.6]} 53... Qd6 {[%clk 0:00:07.3]} 54.
Qc8 {[%clk 0:00:20.8]} 54... Qc6+ {[%clk 0:00:07.6]} 55. Qxc6+ {[%clk
0:00:20.3]} 55... Kxc6 {[%clk 0:00:08.5]} 56. Kf3 {[%clk 0:00:20.2]} 56... Kd6
{[%clk 0:00:08.8]} 57. Bc4 {[%clk 0:00:20.3]} 57... Bf6 {[%clk 0:00:09.4]} 58.
Ke4 {[%clk 0:00:20.6]} 58... Bc3 {[%clk 0:00:09.7]} 59. h5 {[%clk 0:00:19.1]}
59... Bb2 {[%clk 0:00:09.1]} 60. g4 {[%clk 0:00:20]} 60... Bc3 {[%clk
0:00:08.8]} 61. f4 {[%clk 0:00:20.9]} 61... Bd2 {[%clk 0:00:08.7]} 62. Kd3
{[%clk 0:00:20.6]} 62... Bc1 {[%clk 0:00:08.9]} 63. Bf7 {[%clk 0:00:20.9]} 63...
Ke7 {[%clk 0:00:09]} 64. Bc4 {[%clk 0:00:20.7]} 64... Kd6 {[%clk 0:00:09.4]} 65.
Ke4 {[%clk 0:00:21.2]} 65... Ke7 {[%clk 0:00:09.7]} 66. g5 {[%clk 0:00:21.9]}
66... Kd6 {[%clk 0:00:09.6]} 67. Kd3 {[%clk 0:00:22.3]} 67... Ke7 {[%clk
0:00:09.8]} 68. gxh6 {[%clk 0:00:21.2]} 68... gxh6 {[%clk 0:00:09.7]} 69. e4
{[%clk 0:00:21.7]} 69... Bxf4 {[%clk 0:00:09.1]} 70. Bd5 {[%clk 0:00:21.9]}
70... Be5 {[%clk 0:00:09.5]} 71. Kc4 {[%clk 0:00:22]} 71... Bd4 {[%clk
0:00:10.2]} 72. Bb7 {[%clk 0:00:21.8]} 72... Kd6 {[%clk 0:00:09.9]} 73. Bd5
{[%clk 0:00:21.9]} 73... Ke5 {[%clk 0:00:10.3]} 74. Kd3 {[%clk 0:00:22.3]} 74...
Kf4 {[%clk 0:00:10]} 75. Bf7 {[%clk 0:00:22.2]} 75... Ke5 {[%clk 0:00:10]} 76.
Bg6 {[%clk 0:00:21.5]} 1/2-1/2

[Event "*** Titled Tuesday Blitz"]
[Site "Chess.com"]
[Date "2021.03.09"]
[Round "5"]
[White "Treacherous_horse64"]
[Black "Kurkusha"]
[Result "0-1"]
[WhiteElo "2521"]
[BlackElo "2363"]
[TimeControl "180+1"]
[EndTime "11:00:12 PST"]
[Termination "Kurkusha won by checkmate"]

1. d4 {[%clk 0:02:41.7]} 1... d5 {[%clk 0:02:57.8]} 2. c4 {[%clk 0:02:41.8]}
2... e6 {[%clk 0:02:57.5]} 3. Nc3 {[%clk 0:02:42.1]} 3... Nf6 {[%clk 0:02:58]}
4. Nf3 {[%clk 0:02:42]} 4... dxc4 {[%clk 0:02:57.3]} 5. e3 {[%clk 0:02:41.3]}
5... a6 {[%clk 0:02:56.2]} 6. Bxc4 {[%clk 0:02:41]} 6... b5 {[%clk 0:02:55.8]}
7. Bd3 {[%clk 0:02:40.7]} 7... Bb7 {[%clk 0:02:56.2]} 8. O-O {[%clk 0:02:40.7]}
8... c5 {[%clk 0:02:55.2]} 9. a4 {[%clk 0:02:36.5]} 9... c4 {[%clk 0:02:50.8]}
10. Be2 {[%clk 0:02:32.8]} 10... b4 {[%clk 0:02:35.3]} 11. Nb1 {[%clk
0:02:32.6]} 11... Bd5 {[%clk 0:02:34.4]} 12. Nbd2 {[%clk 0:02:31.5]} 12... c3
{[%clk 0:02:29.1]} 13. bxc3 {[%clk 0:02:28.7]} 13... bxc3 {[%clk 0:02:30]} 14.
Nc4 {[%clk 0:02:29.3]} 14... Bb4 {[%clk 0:02:27.4]} 15. Ba3 {[%clk 0:02:26.9]}
15... a5 {[%clk 0:02:25.2]} 16. Ne1 {[%clk 0:02:07.3]} 16... Nc6 {[%clk
0:02:20]} 17. Nc2 {[%clk 0:02:01.8]} 17... O-O {[%clk 0:02:17.8]} 18. Ne5 {[%clk
0:02:01.2]} 18... Qe7 {[%clk 0:02:06.5]} 19. Qb1 {[%clk 0:01:48.2]} 19... Rab8
{[%clk 0:02:03.7]} 20. Bb5 {[%clk 0:01:48.2]} 20... Bxa3 {[%clk 0:01:54.1]} 21.
Rxa3 {[%clk 0:01:39.7]} 21... Nb4 {[%clk 0:01:51.9]} 22. Rxc3 {[%clk 0:00:58.9]}
22... Be4 {[%clk 0:01:48.6]} 23. f3 {[%clk 0:00:38.9]} 23... Bxc2 {[%clk
0:01:08]} 24. Rxc2 {[%clk 0:00:39.8]} 24... Nxc2 {[%clk 0:01:07.9]} 25. Nc6
{[%clk 0:00:40.3]} 25... Qd6 {[%clk 0:01:07.3]} 26. Nxb8 {[%clk 0:00:39.9]}
26... Nxe3 {[%clk 0:01:05.9]} 27. Re1 {[%clk 0:00:23.4]} 27... Rxb8 {[%clk
0:01:04.4]} 28. Rxe3 {[%clk 0:00:21]} 28... Qxd4 {[%clk 0:01:04.2]} 29. Qd3
{[%clk 0:00:20.9]} 29... Qa1+ {[%clk 0:00:55.6]} 30. Kf2 {[%clk 0:00:20.7]}
30... Nd5 {[%clk 0:00:51.1]} 31. Re4 {[%clk 0:00:12.3]} 31... Qb2+ {[%clk
0:00:38.3]} 32. Kg3 {[%clk 0:00:12.2]} 32... h6 {[%clk 0:00:33.8]} 33. Rg4
{[%clk 0:00:10.5]} 33... Qe5+ {[%clk 0:00:31.5]} 34. Kf2 {[%clk 0:00:08.2]}
34... Nf4 {[%clk 0:00:28.9]} 35. Qe4 {[%clk 0:00:04.7]} 35... Qxe4 {[%clk
0:00:28.3]} 36. fxe4 {[%clk 0:00:05.6]} 36... Ng6 {[%clk 0:00:28.5]} 37. Rg3
{[%clk 0:00:04.4]} 37... Rc8 {[%clk 0:00:27.9]} 38. Rd3 {[%clk 0:00:03.4]} 38...
Rc2+ {[%clk 0:00:27.9]} 39. Kf3 {[%clk 0:00:03]} 39... Ne5+ {[%clk 0:00:28.2]}
40. Ke3 {[%clk 0:00:02.3]} 40... Nxd3 {[%clk 0:00:28.7]} 41. Kxd3 {[%clk
0:00:02.7]} 41... Rxg2 {[%clk 0:00:29]} 42. Kd4 {[%clk 0:00:03.1]} 42... Rxh2
{[%clk 0:00:29.1]} 43. Kc5 {[%clk 0:00:03.7]} 43... Re2 {[%clk 0:00:29.1]} 44.
Kb6 {[%clk 0:00:04.4]} 44... Rxe4 {[%clk 0:00:28.9]} 45. Kxa5 {[%clk 0:00:04.6]}
45... h5 {[%clk 0:00:18.8]} 46. Kb6 {[%clk 0:00:04]} 46... Rxa4 {[%clk
0:00:17.1]} 47. Bxa4 {[%clk 0:00:04.9]} 47... g5 {[%clk 0:00:17.4]} 48. Kc5
{[%clk 0:00:05.5]} 48... Kg7 {[%clk 0:00:17.9]} 49. Kd4 {[%clk 0:00:06.2]} 49...
g4 {[%clk 0:00:13.3]} 50. Bd1 {[%clk 0:00:05.4]} 50... Kg6 {[%clk 0:00:12.8]}
51. Ke5 {[%clk 0:00:05.2]} 51... Kg5 {[%clk 0:00:12.8]} 52. Ke4 {[%clk
0:00:03.2]} 52... h4 {[%clk 0:00:10.3]} 53. Ke3 {[%clk 0:00:03.5]} 53... f5
{[%clk 0:00:09.5]} 54. Kf2 {[%clk 0:00:03.5]} 54... e5 {[%clk 0:00:07]} 55. Bc2
{[%clk 0:00:03.4]} 55... e4 {[%clk 0:00:07.1]} 56. Bb1 {[%clk 0:00:01.5]} 56...
Kf4 {[%clk 0:00:06.8]} 57. Kg2 {[%clk 0:00:01.8]} 57... e3 {[%clk 0:00:05.3]}
58. Kf1 {[%clk 0:00:01.8]} 58... h3 {[%clk 0:00:04.4]} 59. Ke2 {[%clk
0:00:02.7]} 59... h2 {[%clk 0:00:04.2]} 60. Be4 {[%clk 0:00:02.6]} 60... fxe4
{[%clk 0:00:03.7]} 61. Ke1 {[%clk 0:00:01.7]} 61... h1=Q+ {[%clk 0:00:04.1]} 62.
Ke2 {[%clk 0:00:02.6]} 62... Qg2+ {[%clk 0:00:03.2]} 63. Ke1 {[%clk 0:00:02.9]}
63... Qd2+ {[%clk 0:00:03.7]} 64. Kf1 {[%clk 0:00:03.2]} 64... Qf2# {[%clk
0:00:04.6]} 0-1